[Event "28th WSCC Open 65 2018"]
[Site "Bled"]
[Date "2018.11.25"]
[Round "7"]
[White "Lederman, Leon"]
[Black "Lisenko, Alexander V"]
[Result "1/2-1/2"]
[ECO "B89"]
[WhiteElo "2255"]
[BlackElo "2334"]
[Annotator "NA"]
[PlyCount "86"]
[EventDate "2018.11.17"]
[EventType "swiss"]
[EventCountry "SLO"]
[SourceTitle "playchess.com"]
[Source "ChessBase"]
[SourceQuality "1"]
[TimeControl "40/5400+30:1800+30"]

1. e4 c5 2. Nf3 Nc6 3. d4 cxd4 4. Nxd4 Nf6 5. Nc3 d6 6. Bc4 e6 7. Be3 a6 8. Qe2 Qc7 9. Bb3 Na5 10. O-O-O b5 11. f3 Be7 12. g4 Nxb3+ 13. axb3 Bb7 14. g5 Nd7 15. h4 b4 {B89: Sicilian: Velimirovic Attack} 16. Nb1 Nc5 17. Nd2 a5 $146 ({Predecessor:} 17... g6 18. h5 O-O-O 19. Qh2 e5 20. Ne2 d5 21. hxg6 fxg6 22. exd5 Bxd5 23. Kb1 {1-0 (36) Salceanu,V (2536)-Gebuhr,G (2228) ICCF corr 1976}) 18. Nb5 Qc6 19. Nc4 O-O 20. Nbxd6 Ba6 21. Qh2 a4 22. Bxc5 Qxc5 23. Qe5 Qxe5 24. Nxe5 axb3 25. Nc6 Bxd6 26. Rxd6 Be2 27. Kd2 Bxf3 28. Re1 bxc2 29. Kxc2 f5 30. gxf6 Rxf6 31. Kb3 Rf4 32. Rxe6 Rxh4 33. Kxb4 Rh2 34. b3 Re2 35. Rxe2 Bxe2 36. Nd4 Bf1 37. Re7 Bg2 38. Nf5 g6 39. Nh6+ Kf8 $11 40. Rf7+ Ke8 41. e5 Rb8+ 42. Kc5 Rxb3 43. Rxh7 Rb7 1/2-1/2

[Event "28th WSCC Open 65 2018"]
[Site "Bled"]
[Date "2018.11.25"]
[Round "7"]
[White "Baum, Bernd"]
[Black "Pritchett, Craig W"]
[Result "0-1"]
[ECO "A46"]
[WhiteElo "2252"]
[BlackElo "2286"]
[Annotator "NA"]
[PlyCount "102"]
[EventDate "2018.11.17"]
[EventType "swiss"]
[EventCountry "SLO"]
[SourceTitle "playchess.com"]
[Source "ChessBase"]
[SourceQuality "1"]
[TimeControl "40/5400+30:1800+30"]

1. d4 Nf6 2. Nf3 e6 3. Bg5 b6 4. e3 h6 5. Bh4 c5 6. Nbd2 Be7 7. c3 Nc6 8. Bd3 Bb7 9. O-O cxd4 10. cxd4 O-O 11. a3 Nd5 {A46: 1 d4 Nf6 2 Nf3 e6: Torre, London and Colle Systems} (11... Rc8 12. Qe2 Nh5 13. Bxe7 Qxe7 14. Rac1 Nf6 15. Rc2 Nb8 16. Rfc1 Rxc2 17. Rxc2 Rc8 18. Rxc8+ Bxc8 19. e4 {1-0 (58) Carlsen,M (2837)-Korobov,A (2652) Riadh 2017}) 12. Bxe7 Qxe7 13. Rc1 $146 ({Predecessor:} 13. Qa4 Rfc8 14. Rfc1 Rc7 15. Rc2 Rac8 16. Rac1 a6 17. Bf1 b5 18. Qb3 d6 19. Qd3 {½-½ (28) Malaniuk,V (2510)-Suba,M (2520) Copenhagen 1991}) 13... a6 14. Qe2 b5 15. Nb3 d6 16. Rc2 Rfc8 17. Rfc1 Qd8 18. Qd2 Qb6 19. e4 Nf6 20. e5 dxe5 21. dxe5 Nd7 22. Bh7+ Kxh7 23. Qxd7 Rc7 24. Qd3+ Kg8 25. Nc5 Rd8 26. Qe2 Ne7 27. Nxb7 Rxc2 28. Rxc2 Qxb7 29. h4 Rc8 30. Rxc8+ Qxc8 31. Qd2 Nd5 32. Kh2 Qc4 33. Qd4 Qxd4 34. Nxd4 Nf4 35. b4 Nd3 36. Nc6 Nxf2 37. Nb8 Ng4+ 38. Kg3 Nxe5 39. Nxa6 Nc4 40. Kf4 Nxa3 41. Ke4 f5+ (41... Kf8 $19 {has better winning chances.} 42. Kd4 Ke7) 42. Ke5 Kf7 43. Nc7 Nc4+ 44. Kf4 $2 (44. Kd4 $1 $15) 44... g6 45. Nxb5 e5+ 46. Kg3 Ke6 47. Nc3 Kd6 48. Kf3 h5 49. g3 Kc6 50. Ke2 Nb6 51. Kd2 Nd5 $19 0-1

[Event "28th WSCC Open 65 2018"]
[Site "Bled"]
[Date "2018.11.25"]
[Round "7"]
[White "Kierzek, Matthias"]
[Black "Tunik, Gennady"]
[Result "0-1"]
[ECO "E16"]
[WhiteElo "2182"]
[BlackElo "2365"]
[Annotator "NA"]
[PlyCount "78"]
[EventDate "2018.11.17"]
[EventType "swiss"]
[EventCountry "SLO"]
[SourceTitle "playchess.com"]
[Source "ChessBase"]
[SourceQuality "1"]
[TimeControl "40/5400+30:1800+30"]

1. d4 Nf6 2. c4 e6 3. Nf3 b6 4. g3 Bb7 5. Bg2 c5 6. d5 exd5 7. cxd5 Bxd5 8. Nc3 Bc6 9. e4 d6 10. O-O Be7 11. Nh4 g6 12. Bh6 Bf8 13. Bxf8 Kxf8 14. Qd2 Kg7 15. Rad1 Re8 16. Rfe1 Ng4 17. Qxd6 Qxd6 18. Rxd6 Ne5 19. b3 f6 20. Rdd1 Nf7 21. Nd5 Bxd5 22. exd5 Nd7 23. Re6 Rad8 24. f4 f5 25. Nf3 Nf6 26. Rxe8 Rxe8 27. Ng5 Nd6 28. Ne6+ Kf7 29. h4 Nh5 30. Kf2 h6 31. Bf3 Ng7 32. h5 Nxh5 33. Bxh5 gxh5 34. Rh1 Ne4+ 35. Kf3 Nf6 36. Rd1 Ne4 37. Rh1 Kg6 38. Rxh5 Rxe6 39. dxe6 Kxh5 0-1

[Event "28th WSCC Open 65 2018"]
[Site "Bled"]
[Date "2018.11.25"]
[Round "7"]
[White "Wahlbom, Magnus"]
[Black "Berkovich, Mark A"]
[Result "1/2-1/2"]
[ECO "B12"]
[WhiteElo "2173"]
[BlackElo "2339"]
[Annotator "NA"]
[PlyCount "62"]
[EventDate "2018.11.17"]
[EventType "swiss"]
[EventCountry "SLO"]
[SourceTitle "playchess.com"]
[Source "ChessBase"]
[SourceQuality "1"]
[TimeControl "40/5400+30:1800+30"]

1. e4 c6 2. d4 d5 3. e5 c5 4. dxc5 Nc6 5. Bb5 e6 6. c3 Bxc5 7. Qe2 Nge7 8. Nf3 O-O 9. O-O Ng6 10. Nbd2 f6 11. Nb3 Bb6 12. exf6 Qxf6 13. Bg5 Nf4 14. Bxf6 Nxe2+ 15. Bxe2 gxf6 16. c4 dxc4 17. Bxc4 Kg7 18. Rad1 e5 19. h3 Rd8 20. Rxd8 Bxd8 21. Nc5 Bb6 22. Ne6+ Bxe6 23. Bxe6 Rd8 24. Re1 Nd4 25. Nxd4 Rxd4 26. Re2 h5 27. g4 hxg4 28. hxg4 Kh6 29. Kg2 Kg5 30. Bf5 Rd1 31. Kf3 Rd8 1/2-1/2

[Event "28th WSCC Open 65 2018"]
[Site "Bled"]
[Date "2018.11.26"]
[Round "8"]
[White "Wahlbom, Magnus"]
[Black "Karasev, Vladimir I"]
[Result "1/2-1/2"]
[ECO "B95"]
[WhiteElo "2173"]
[BlackElo "2314"]
[Annotator "RC"]
[PlyCount "115"]
[EventDate "2018.11.17"]
[EventType "swiss"]
[EventCountry "SLO"]
[SourceTitle "playchess.com"]
[Source "ChessBase"]
[SourceQuality "1"]
[TimeControl "40/5400+30:1800+30"]

1. e4 c5 2. Nf3 d6 3. d4 cxd4 4. Nxd4 Nf6 5. Nc3 a6 6. Bg5 e6 7. Qf3 Nbd7 8. O-O-O Qc7 9. Qg3 Rb8 10. f4 h6 11. Bxf6 gxf6 12. Be2 h5 13. Qh4 Qc5 14. Rd3 Bh6 15. Kb1 b5 16. Bxh5 Kf8 17. Be2 Bg7 18. Qg3 b4 19. Na4 Qc7 20. Rhd1 Nb6 21. Nxb6 Rxb6 22. h3 Rg8 23. Bf3 f5 24. Qe1 fxe4 25. Qxe4 d5 26. Qe3 Bh6 27. Ne2 a5 28. g4 Ba6 29. Rd4 Bg7 30. R4d2 Rh8 31. Bg2 Bc3 32. Nd4 Bxd2 33. Rxd2 a4 34. Rd1 Rg8 35. Re1 a3 36. f5 e5 37. Qxe5 Qxe5 38. Rxe5 axb2 39. Rxd5 Bb7 40. Rd8+ Kg7 41. Rxg8+ Kxg8 42. Bxb7 Rxb7 43. Kxb2 Kg7 44. Kb3 Kf6 45. Nc6 Kg5 46. Nxb4 Kh4 47. c4 Kxh3 48. g5 Kg4 49. g6 f6 50. c5 Kxf5 51. c6 Rg7 52. Nd5 Ke6 53. c7 Kd7 54. Nxf6+ Kc8 55. Nd5 Kb7 56. Kc4 Kc8 57. Kd4 Kd7 58. Ke5 1/2-1/2

[Event "28th WSCC Open 65 2018"]
[Site "Bled"]
[Date "2018.11.26"]
[Round "8"]
[White "Srebrnic, Vojko"]
[Black "Buchal, Stephan"]
[Result "0-1"]
[ECO "A01"]
[WhiteElo "2140"]
[BlackElo "2288"]
[Annotator "NA"]
[PlyCount "70"]
[EventDate "2018.11.17"]
[EventType "swiss"]
[EventCountry "SLO"]
[SourceTitle "playchess.com"]
[Source "ChessBase"]
[SourceQuality "1"]
[TimeControl "40/5400+30:1800+30"]

1. b3 e5 2. Bb2 d6 3. e4 Nf6 4. Nc3 c5 5. Bb5+ {LiveBook: 5 Games} Nbd7 6. a4 g6 7. Nf3 Bg7 8. d3 O-O 9. Bc4 Nb6 10. Nd2 Bg4 11. f3 Nxc4 $16 12. Nxc4 Be6 13. Ne2 Qc7 14. O-O Nh5 15. g4 Nf6 16. Ng3 Nd7 17. Qe2 Rae8 18. Ne3 Nb8 19. c4 Nc6 20. Bc3 Nd4 21. Bxd4 cxd4 22. Ng2 Bh6 23. Kh1 Qe7 24. f4 exf4 25. Nxf4 Qh4 26. Nxe6 fxe6 27. Rxf8+ Rxf8 28. Rf1 Rxf1+ 29. Nxf1 Qh3 30. Kg1 Bf4 31. Kh1 a5 32. Kg1 e5 33. Qd1 Kg7 34. Qe2 Kh6 35. Nd2 Qe3+ 0-1

[Event "28th WSCC Open 65 2018"]
[Site "Bled"]
[Date "2018.11.27"]
[Round "9"]
[White "Vaisser, Anatoli"]
[Black "Shevelev, Arkady"]
[Result "1/2-1/2"]
[ECO "A46"]
[WhiteElo "2504"]
[BlackElo "2278"]
[Annotator "RC"]
[PlyCount "60"]
[EventDate "2018.11.17"]
[EventType "swiss"]
[EventCountry "SLO"]
[SourceTitle "playchess.com"]
[Source "ChessBase"]
[SourceQuality "1"]
[TimeControl "40/5400+30:1800+30"]

1. d4 {[%emt 0:00:00]} Nf6 {[%emt 0:00:00]} 2. Nf3 {[%emt 0:00:39]} d5 {[%emt 0:00:19]} 3. c4 {[%emt 0:00:45]} c5 {[%emt 0:00:20]} 4. dxc5 {[%emt 0:02:34]} e6 {[%emt 0:02:55]} 5. e3 {[%emt 0:01:30]} Bxc5 {[%emt 0:00:49]} 6. a3 {[%emt 0:01:13]} Be7 {[%emt 0:05:04]} 7. cxd5 {[%emt 0:01:51]} Qxd5 {[%emt 0:03:51]} 8. Bd3 {[%emt 0:02:49]} Nc6 {[%emt 0:04:15]} 9. Nc3 {[%emt 0:00:18]} Qh5 {[%emt 0:04:55]} 10. b4 {[%emt 0:11:04]} Ne5 {[%emt 0:04:10]} 11. Nxe5 {[%emt 0:06:25]} Qxe5 {[%emt 0:00:17]} 12. Bb2 {[%emt 0:00:12]} O-O {[%emt 0:01:06]} 13. Qc2 {[%emt 0:06:07]} Qc7 {[%emt 0:01:54]} 14. g4 {[%emt 0:06:20]} Qc6 {[%emt 0:00:23]} 15. Rg1 {[%emt 0:01:11]} g6 {[%emt 0:00:27]} 16. g5 {[%emt 0:03:31]} Nd5 {[%emt 0:00:42]} 17. Nxd5 {[%emt 0:01:27]} exd5 {[%emt 0:00:24]} 18. Qd2 {[%emt 0:02:43]} Rd8 {[%emt 0:05:49]} 19. h4 {[%emt 0:01:59]} Qe6 {[%emt 0:03:23]} 20. Bc2 {[%emt 0:05:59]} d4 {[%emt 0:01:23]} 21. Bxd4 {[%emt 0:00:12]} Bf8 {[%emt 0:00:17]} 22. Qe2 {[%emt 0:01:32]} Bd7 {[%emt 0:00:56]} 23. Bd3 {[%emt 0:14:18]} Rac8 {[%emt 0:01:33]} 24. h5 {[%emt 0:00:59]} Bc6 {[%emt 0:06:00]} 25. hxg6 {[%emt 0:01:47]} hxg6 {[%emt 0:00:17]} 26. Bc4 {[%emt 0:01:47]} Qf5 {[%emt 0:00:51]} 27. Qg4 {[%emt 0:07:37]} Qc2 {[%emt 0:05:24]} 28. Qe2 {[%emt 0:00:10]} Qf5 {[%emt 0:00:20]} 29. Qg4 {[%emt 0:00:32]} Qc2 {[%emt 0:00:09]} 30. Qe2 {[%emt 0:00:36]} Qf5 {[%emt 0:00:12]} 1/2-1/2

[Event "28th WSCC Open 65 2018"]
[Site "Bled"]
[Date "2018.11.27"]
[Round "9"]
[White "Berkovich, Mark A"]
[Black "Boehnisch, Manfred"]
[Result "1/2-1/2"]
[ECO "A06"]
[WhiteElo "2339"]
[BlackElo "2261"]
[Annotator "RC"]
[PlyCount "98"]
[EventDate "2018.11.17"]
[EventType "swiss"]
[EventCountry "SLO"]
[SourceTitle "playchess.com"]
[Source "ChessBase"]
[SourceQuality "1"]
[TimeControl "40/5400+30:1800+30"]

1. Nf3 {[%emt 0:00:00]} d5 {[%emt 0:00:00]} 2. g3 {[%emt 0:00:00]} c6 {[%emt 0:00:01]} 3. Bg2 {[%emt 0:00:00]} Bf5 {[%emt 0:00:14]} 4. c4 {[%emt 0:00:21]} e6 {[%emt 0:02:49]} 5. O-O {[%emt 0:00:40]} Nd7 {[%emt 0:00:20]} 6. d3 {[%emt 0:00:15]} Ngf6 {[%emt 0:00:54]} 7. Nc3 {[%emt 0:00:21]} Bc5 {[%emt 0:01:49]} 8. cxd5 {[%emt 0:01:55]} exd5 {[%emt 0:03:10]} 9. e4 {[%emt 0:01:36]} dxe4 {[%emt 0:02:52]} 10. dxe4 {[%emt 0:00:11]} Be6 {[%emt 0:01:43]} 11. e5 {[%emt 0:04:58]} Nd5 {[%emt 0:00:23]} 12. Ne4 {[%emt 0:21:46]} Qb6 {[%emt 0:05:26]} 13. Nfg5 {[%emt 0:08:34]} O-O-O {[%emt 0:26:52]} 14. Nxe6 {[%emt 0:02:30]} fxe6 {[%emt 0:00:06]} 15. Qg4 {[%emt 0:01:12]} Bd4 {[%emt 0:05:23]} 16. Qxe6 {[%emt 0:03:32]} Bxe5 {[%emt 0:00:43]} 17. Bg5 {[%emt 0:03:07]} Rde8 {[%emt 0:06:40]} 18. Nd6+ {[%emt 0:01:45]} Bxd6 {[%emt 0:00:07]} 19. Qxd6 {[%emt 0:00:05]} h6 {[%emt 0:03:06]} 20. Bxd5 {[%emt 0:08:03]} hxg5 {[%emt 0:00:09]} 21. Be6 {[%emt 0:00:40]} Qc7 {[%emt 0:00:12]} 22. Rad1 {[%emt 0:00:24]} Rd8 {[%emt 0:00:14]} 23. Rfe1 {[%emt 0:03:36]} Qxd6 {[%emt 0:00:34]} 24. Rxd6 {[%emt 0:00:05]} Kc7 {[%emt 0:00:15]} 25. Rxd7+ {[%emt 0:00:18]} Rxd7 {[%emt 0:00:08]} 26. Bxd7 {[%emt 0:00:03]} Kxd7 {[%emt 0:00:11]} 27. Re5 {[%emt 0:00:07]} Re8 {[%emt 0:02:46]} 28. Rxg5 {[%emt 0:00:25]} Re7 {[%emt 0:00:05]} 29. Kg2 {[%emt 0:05:32]} Kd6 {[%emt 0:02:15]} 30. h4 {[%emt 0:02:25]} c5 {[%emt 0:00:18]} 31. h5 {[%emt 0:02:34]} b5 {[%emt 0:00:45]} 32. g4 {[%emt 0:00:41]} a5 {[%emt 0:01:51]} 33. Kf3 {[%emt 0:14:00]} a4 {[%emt 0:11:02]} 34. Kf4 {[%emt 0:06:17]} b4 {[%emt 0:07:39]} 35. f3 {[%emt 0:07:27]} a3 {[%emt 0:05:36]} 36. bxa3 {[%emt 0:00:13]} bxa3 {[%emt 0:00:41]} 37. Rg6+ {[%emt 0:00:29]} Kd5 {[%emt 0:01:40]} 38. Ra6 {[%emt 0:00:22]} Kd4 {[%emt 0:00:50]} 39. Rxa3 {[%emt 0:00:25]} c4 {[%emt 0:00:08]} 40. Ra8 {[%emt 0:00:00]} Rf7+ {[%emt 0:00:00]} 41. Kg5 {[%emt 0:03:38]} Rc7 {[%emt 0:01:35]} 42. Re8 {[%emt 0:06:59]} c3 {[%emt 0:00:33]} 43. Re1 {[%emt 0:00:32]} c2 {[%emt 0:01:34]} 44. Rc1 {[%emt 0:02:23]} Ke3 {[%emt 0:02:45]} 45. h6 {[%emt 0:03:38]} gxh6+ {[%emt 0:00:26]} 46. Kxh6 {[%emt 0:00:02]} Kd2 {[%emt 0:06:01]} 47. Rxc2+ {[%emt 0:04:50]} Rxc2 {[%emt 0:00:09]} 48. g5 {[%emt 0:00:04]} Ke3 {[%emt 0:00:17]} 49. g6 {[%emt 0:00:14]} Rxa2 1/2-1/2

[Event "28th WSCC Open 65 2018"]
[Site "Bled"]
[Date "2018.11.27"]
[Round "9"]
[White "Shirazi, Kamran"]
[Black "Nukin, Tolegen"]
[Result "1-0"]
[ECO "B21"]
[WhiteElo "2333"]
[BlackElo "2171"]
[Annotator "NA"]
[PlyCount "79"]
[EventDate "2018.11.17"]
[EventType "swiss"]
[EventCountry "SLO"]
[SourceTitle "playchess.com"]
[Source "ChessBase"]
[SourceQuality "1"]
[TimeControl "40/5400+30:1800+30"]

1. e4 {[%emt 0:03:36]} c5 {[%emt 0:01:02]} 2. d4 {[%emt 0:00:29]} cxd4 {[%emt 0:00:03]} 3. c3 {[%emt 0:00:05]} d5 {[%emt 0:00:30]} 4. exd5 {[%emt 0:00:06]} Qxd5 {[%emt 0:00:03]} 5. cxd4 {[%emt 0:00:14]} Nc6 {[%emt 0:00:21]} 6. Nf3 {[%emt 0:00:25]} e6 {[%emt 0:03:25]} 7. Nc3 {[%emt 0:00:06]} Qd8 {[%emt 0:00:29]} 8. Bc4 {[%emt 0:00:48]} Nf6 {[%emt 0:00:14]} 9. O-O {[%emt 0:00:26]} Be7 {[%emt 0:00:01]} 10. a3 {[%emt 0:00:51]} O-O {[%emt 0:00:04]} 11. Qd3 {[%emt 0:00:28]} a6 {[%emt 0:00:56]} 12. Re1 {[%emt 0:02:32]} b5 {[%emt 0:00:14]} 13. Ba2 {[%emt 0:00:02]} Bb7 {[%emt 0:04:41]} 14. Bb1 {[%emt 0:01:46]} g6 {[%emt 0:00:33]} 15. h4 {[%emt 0:02:12]} Qd6 {[%emt 0:00:55]} 16. h5 {[%emt 0:12:53]} b4 {[%emt 0:07:39]} 17. hxg6 {[%emt 0:00:46]} hxg6 {[%emt 0:00:36]} 18. Ne4 {[%emt 0:06:00]} Nxe4 {[%emt 0:01:46]} 19. Rxe4 {[%emt 0:06:08]} Bf6 {[%emt 0:00:54]} 20. Rf4 {[%emt 0:19:41]} Kg7 {[%emt 0:05:56]} 21. Bd2 {[%emt 0:12:22]} bxa3 {[%emt 0:03:25]} 22. Rxa3 {[%emt 0:02:05]} Ne7 {[%emt 0:02:54]} 23. Ne5 {[%emt 0:05:48]} Rh8 {[%emt 0:06:04]} 24. Rb3 {[%emt 0:02:36]} Qd5 {[%emt 0:03:19]} 25. Nf3 {[%emt 0:03:18]} Qh5 {[%emt 0:07:14]} 26. Kf1 {[%emt 0:00:02]} Bd5 {[%emt 0:00:16]} 27. Rxf6 {[%emt 0:00:08]} Qh1+ {[%emt 0:01:18]} 28. Ke2 {[%emt 0:00:14]} Kxf6 {[%emt 0:00:07]} 29. Rc3 {[%emt 0:03:11]} Kg7 {[%emt 0:02:32]} 30. Rc7 {[%emt 0:00:27]} Rac8 {[%emt 0:09:36]} 31. Rxe7 {[%emt 0:00:03]} Bc4 {[%emt 0:00:05]} 32. Rxf7+ {[%emt 0:00:09]} Kxf7 {[%emt 0:00:23]} 33. Ne5+ {[%emt 0:00:07]} Ke7 {[%emt 0:01:42]} 34. Bg5+ {[%emt 0:02:08]} Kd6 {[%emt 0:01:13]} 35. Nxc4+ {[%emt 0:00:13]} Rxc4 {[%emt 0:05:05]} 36. Bf4+ {[%emt 0:00:17]} Ke7 {[%emt 0:02:20]} 37. Qxc4 {[%emt 0:00:22]} Qxb1 {[%emt 0:00:39]} 38. Qc7+ {[%emt 0:00:28]} Kf6 {[%emt 0:00:12]} 39. Qe5+ Kf7 {[%emt 0:00:12]} 40. Qxh8 {[%emt 0:00:00] Kg8} 1-0

[Event "28th WSCC Open 65 2018"]
[Site "Bled"]
[Date "2018.11.27"]
[Round "9"]
[White "Pushkov, Nikolai"]
[Black "Wahlbom, Magnus"]
[Result "0-1"]
[ECO "E92"]
[WhiteElo "2324"]
[BlackElo "2173"]
[Annotator "NA"]
[PlyCount "58"]
[EventDate "2018.11.17"]
[EventType "swiss"]
[EventCountry "SLO"]
[SourceTitle "playchess.com"]
[Source "ChessBase"]
[SourceQuality "1"]
[TimeControl "40/5400+30:1800+30"]

1. Nf3 {[%emt 0:00:00]} Nf6 {[%emt 0:00:00]} 2. c4 {[%emt 0:00:00]} g6 {[%emt 0:00:10]} 3. Nc3 {[%emt 0:00:09]} Bg7 {[%emt 0:00:13]} 4. e4 {[%emt 0:00:15]} d6 {[%emt 0:00:36]} 5. d4 {[%emt 0:00:08]} O-O {[%emt 0:00:23]} 6. Be2 {[%emt 0:00:07]} e5 {[%emt 0:00:40]} 7. d5 {[%emt 0:01:15]} a5 {[%emt 0:01:21]} 8. Be3 {[%emt 0:01:12]} Ng4 {[%emt 0:04:07]} 9. Bg5 {[%emt 0:00:37]} f6 {[%emt 0:00:11]} 10. Bh4 {[%emt 0:00:22]} Nh6 {[%emt 0:04:05]} 11. Nd2 {[%emt 0:02:04]} Na6 {[%emt 0:01:01]} 12. a3 {[%emt 0:01:45]} g5 {[%emt 0:06:37]} 13. Bg3 {[%emt 0:00:15]} Bd7 {[%emt 0:00:10]} 14. O-O {[%emt 0:01:40]} Qe8 {[%emt 0:06:52]} 15. b3 {[%emt 0:00:51]} g4 {[%emt 0:07:03]} 16. Rb1 {[%emt 0:04:19]} f5 {[%emt 0:05:47]} 17. exf5 {[%emt 0:00:23]} Bxf5 {[%emt 0:00:09]} 18. Nde4 {[%emt 0:01:21]} Qg6 {[%emt 0:03:27]} 19. Bd3 {[%emt 0:00:14]} Nc5 {[%emt 0:05:16]} 20. Nxc5 {[%emt 0:02:07]} dxc5 {[%emt 0:00:05]} 21. Bxf5 {[%emt 0:00:18]} Nxf5 {[%emt 0:00:07]} 22. Nb5 {[%emt 0:30:44]} Rf7 {[%emt 0:05:12]} 23. Qe2 {[%emt 0:01:48]} h5 {[%emt 0:10:54]} 24. Rbe1 {[%emt 0:04:02]} h4 {[%emt 0:11:00]} 25. Bxe5 {[%emt 0:01:26]} Re8 {[%emt 0:00:08]} 26. Qb2 {[%emt 0:09:53]} Rfe7 {[%emt 0:00:38]} 27. Bxg7 {[%emt 0:01:34]} Rxe1 {[%emt 0:00:13]} 28. Bc3 {[%emt 0:00:08]} Rxf1+ {[%emt 0:00:28]} 29. Kxf1 {[%emt 0:00:02]} Nd4 {[%emt 0:04:42]} 0-1

[Event "28th WSCC Open 65 2018"]
[Site "Bled"]
[Date "2018.11.27"]
[Round "9"]
[White "Werner, Clemens"]
[Black "Lisenko, Alexander V"]
[Result "1-0"]
[ECO "B30"]
[WhiteElo "2266"]
[BlackElo "2334"]
[Annotator "RC"]
[PlyCount "123"]
[EventDate "2018.11.17"]
[EventType "swiss"]
[EventCountry "SLO"]
[SourceTitle "playchess.com"]
[Source "ChessBase"]
[SourceQuality "1"]
[TimeControl "40/5400+30:1800+30"]

1. e4 {[%emt 0:00:00]} c5 {[%emt 0:00:00]} 2. Nf3 {[%emt 0:00:00]} Nc6 {[%emt 0:00:00]} 3. c3 {[%emt 0:00:05]} d5 {[%emt 0:00:00]} 4. exd5 {[%emt 0:00:11]} Qxd5 {[%emt 0:00:00]} 5. d4 {[%emt 0:00:06]} e6 {[%emt 0:01:37]} 6. Na3 {[%emt 0:01:14]} a6 {[%emt 0:09:49]} 7. Nc4 {[%emt 0:07:10]} Qd8 {[%emt 0:03:52]} 8. Bg5 {[%emt 0:15:54]} f6 {[%emt 0:04:29]} 9. Be3 {[%emt 0:02:13]} b5 {[%emt 0:00:21]} 10. Ncd2 {[%emt 0:00:19]} cxd4 {[%emt 0:03:22]} 11. Nxd4 {[%emt 0:05:21]} Nxd4 {[%emt 0:03:25]} 12. cxd4 {[%emt 0:00:23]} Bb7 {[%emt 0:05:17]} 13. a4 {[%emt 0:05:24]} Qd5 {[%emt 0:12:34]} 14. axb5 {[%emt 0:07:05]} axb5 {[%emt 0:00:41]} 15. Rxa8+ {[%emt 0:00:21]} Bxa8 {[%emt 0:00:03]} 16. Qb3 {[%emt 0:09:16]} Qxb3 {[%emt 0:07:42]} 17. Nxb3 {[%emt 0:00:02]} Kf7 {[%emt 0:09:16]} 18. f3 {[%emt 0:00:54]} Bd5 {[%emt 0:01:48]} 19. Nd2 {[%emt 0:07:45]} b4 {[%emt 0:09:29]} 20. Bd3 {[%emt 0:00:50]} Bd6 {[%emt 0:01:16]} 21. Kf2 {[%emt 0:06:01]} Ne7 {[%emt 0:00:22]} 22. Ne4 {[%emt 0:04:33]} Bb8 {[%emt 0:05:16]} 23. Ng3 {[%emt 0:04:04]} Bb7 {[%emt 0:06:21]} 24. Ra1 {[%emt 0:02:54]} Rd8 {[%emt 0:00:56]} 25. Ne2 {[%emt 0:00:41]} Nd5 {[%emt 0:06:35]} 26. g3 {[%emt 0:01:38]} Rc8 {[%emt 0:01:01]} 27. Bd2 {[%emt 0:05:07]} f5 {[%emt 0:02:58]} 28. Nc1 {[%emt 0:03:22]} Kf6 {[%emt 0:01:16]} 29. f4 {[%emt 0:01:03]} h6 {[%emt 0:00:26]} 30. h4 {[%emt 0:00:39]} Bd6 {[%emt 0:01:08]} 31. Ra7 {[%emt 0:00:55]} Bc6 {[%emt 0:01:06]} 32. Nb3 {[%emt 0:01:03]} Ra8 {[%emt 0:00:32]} 33. Rxa8 {[%emt 0:00:22]} Bxa8 {[%emt 0:00:02]} 34. Nc5 {[%emt 0:00:28]} Ke7 {[%emt 0:00:43]} 35. Bc4 {[%emt 0:00:18]} Nf6 {[%emt 0:01:01]} 36. Bxb4 {[%emt 0:00:37]} Nd5 {[%emt 0:01:51]} 37. Bxd5 {[%emt 0:00:36]} Bxd5 {[%emt 0:00:08]} 38. Nd3 {[%emt 0:00:18]} Bxb4 {[%emt 0:00:56]} 39. Nxb4 {[%emt 0:00:05]} Be4 {[%emt 0:00:05]} 40. Ke3 {[%emt 0:00:00]} Kf6 {[%emt 0:00:00]} 41. Nd3 {[%emt 0:01:12]} g5 {[%emt 0:00:27]} 42. Ne5 {[%emt 0:02:32]} gxh4 {[%emt 0:00:20]} 43. gxh4 {[%emt 0:00:06]} Ke7 {[%emt 0:05:00]} 44. Kd2 {[%emt 0:01:42]} Kd6 {[%emt 0:03:20]} 45. Kc3 {[%emt 0:11:16]} Bg2 {[%emt 0:04:31]} 46. Nc4+ {[%emt 0:02:28]} Kc6 {[%emt 0:03:19]} 47. Ne3 {[%emt 0:00:45]} Be4 {[%emt 0:02:57]} 48. Kb4 {[%emt 0:00:42]} Kb6 {[%emt 0:00:37]} 49. Kc4 {[%emt 0:00:17]} Kc6 {[%emt 0:06:07]} 50. Nd1 {[%emt 0:00:28]} Bg2 {[%emt 0:02:08]} 51. Nc3 {[%emt 0:00:06]} Bf1+ {[%emt 0:00:09]} 52. Kb4 {[%emt 0:00:07]} Kb6 {[%emt 0:00:35]} 53. d5 {[%emt 0:00:52]} exd5 {[%emt 0:05:00]} 54. Nxd5+ {[%emt 0:00:18]} Kc6 {[%emt 0:01:00]} 55. Ne7+ {[%emt 0:03:16]} Kd6 {[%emt 0:01:18]} 56. Nxf5+ {[%emt 0:00:12]} Ke6 {[%emt 0:00:07]} 57. Ng3 {[%emt 0:01:26]} Ba6 {[%emt 0:01:32]} 58. Kc5 {[%emt 0:00:16]} Bb7 {[%emt 0:01:32]} 59. b4 {[%emt 0:00:21]} Ba8 {[%emt 0:00:13]} 60. b5 {[%emt 0:01:39]} Bf3 {[%emt 0:00:12]} 61. Kb6 {[%emt 0:01:51]} Bd5 {[%emt 0:01:21]} 62. Kc7 {[%emt 0:00:09]} 1-0